Cogmind - Beta 16 @@@ ROGUE MODE // 2025.11.09 @ 21:03:42 Player: chebyrekser Result: Destroyed by 8R-AWN with 8R-AWN's Boregun Performance ------------- Evolutions (1) 500 Regions Visited (5) 1000 Robots Destroyed (92) 460 Value Destroyed (1915) 1915 Prototype IDs (27) 540 Alien Tech Used (0) 0 Bonus (409) 409 TOTAL SCORE: 4824 Bonus ------- High Alert Combat Kills 49 Follower Combat Kills 60 Aligned with FarCom 300 Cogmind --------- Core Integrity 0/400 Matter 202/300 Energy 100/100 System Corruption 3% Temperature Cool (0) Movement Treading (200) Ox1 Location -9/Exiles Parts ------- > --- POWER (1) -------- (None) > --- PROPULSION (3) --- Light Treads (fused) > --- UTILITY (2) ------ Large Storage Unit Core Shielding > --- WEAPON (3) ------- Light Cannon > --- INVENTORY (15) --- Improved Ion Engine Light Treads Light Treads Light Treads Cooling System Core Shielding Beam Rifle Particle Gun Particle Cannon Particle Cannon Rocket Launcher Peak State ------------ > --- POWER ------------ Reinforced Ion Engine > --- PROPULSION ------- Light Treads Light Treads Light Treads > --- UTILITY ---------- Improved Heat Sink Huge Storage Unit > --- WEAPON ----------- Beam Rifle Assault Rifle Improved Assault Rifle > --- INVENTORY -------- Improved Ion Engine Light Treads Light Treads Light Treads Light Treads Improved Flight Unit Improved Flight Unit Heat Sink Cooling System Large Storage Unit Experimental Sensor Array Seismic Detector Core Shielding Core Shielding Hacking Suite Sensor Drone Bay Light EM Pulse Cannon Particle Cannon Particle Cannon Improved Assault Rifle Light Cannon Rocket Launcher Rocket Launcher Stasis Trap Stasis Trap [Rating: 20] Favorites ----------- Power Reinforced Ion Engine Engine Reinforced Ion Engine Propulsion Light Treads Treads Light Treads Wheel Wheel Utility Large Storage Unit Device Seismic Detector Storage Large Storage Unit Protection Core Shielding Weapon Beam Rifle Energy Gun Beam Rifle Energy Cannon Beam Cannon Ballistic Gun Assault Rifle Ballistic Cannon Light Cannon Launcher Rocket Launcher Special Weapon Mining Laser Build | -11 -10 -10 -9 -9 -9 ------- Run | Yrd Mat Min Mat Min Exi Slots Evolved 2 | . . . 2 . . Power . | . . . . . . Propulsion 1 | . . . 1 . . Utility . | . . . . . . Weapon 1 | . . . 1 . . Parts Attached 54 | 7 9 4 27 5 2 Power 4 | 1 1 . 2 . . Engine 4 | 1 1 . 2 . . Core . | . . . . . . Reactor . | . . . . . . Propulsion 17 | 2 2 1 11 1 . Treads 12 | 1 . 1 9 1 . Leg . | . . . . . . Wheel 5 | 1 2 . 2 . . Hover . | . . . . . . Flight . | . . . . . . Utility 14 | 2 4 2 3 2 1 Device 10 | 1 3 2 2 2 . Storage 3 | 1 1 . 1 . . Processor . | . . . . . . Hackware . | . . . . . . Protection 1 | . . . . . 1 Artifact . | . . . . . . Weapon 19 | 2 2 1 11 2 1 Energy Gun 7 | 2 . . 5 . . Energy Cannon 1 | . . . 1 . . Ballistic Gun 7 | . . . 4 2 1 Ballistic Cannon 2 | . 1 . 1 . . Launcher 1 | . . 1 . . . Special Weapon 1 | . 1 . . . . Impact Weapon . | . . . . . . Slashing Weapon . | . . . . . . Piercing Weapon . | . . . . . . Special Melee Weapon . | . . . . . . Unidentified Prototypes 2 | . . 1 1 . . Parts Lost 12 | . 1 . 4 1 6 Power 2 | . 1 . . . 1 Propulsion 2 | . . . . . 2 Utility 1 | . . . 1 . . Weapon 7 | . . . 3 1 3 Highest Loss Streak 6 | . 1 . 1 1 6 To Critical Strikes 6 | . . . . . 6 Average Backups 16 | 5 13 15 17 24 19 Power 1 | . . 1 1 1 3 Propulsion 4 | 3 4 4 5 6 3 Utility 5 | . 4 4 5 9 3 Weapon 5 | 1 3 4 5 8 8 Tool/Special . | . . . . . . Unused Backups 32 | 1 4 2 3 3 19 Power 6 | . . . 2 . 4 Propulsion 8 | 1 2 1 . . 4 Utility 10 | . 1 1 1 . 7 Weapon 8 | . 1 . . 3 4 Tool/Special . | . . . . . . Average Slot Usage (%) 93 | . 100 100 98 99 69 Engine 12 | . 14 14 11 11 10 Treads 25 | . 14 23 27 32 32 Wheel 5 | . 14 4 4 . . Device 11 | . 14 14 10 11 7 Storage 12 | . 14 14 11 11 11 Energy Gun 9 | . 16 . 11 11 . Energy Cannon 1 | . . . 4 . . Ballistic Gun 8 | . . . 15 21 4 Ballistic Cannon 3 | . 6 13 1 . . Special Weapon 3 | . 4 14 . . . Peak Build Rating 20 | 7 10 16 19 20 20 Average Rating 12 | 5 9 9 15 18 13 On Entrance 11 | . 7 10 10 19 20 Avg Prop Armor Cover (%) 8 | 8 10 4 4 . . Naked Turns . | . . . . . . Heaviest Build 100 | 12 29 29 100 100 99 Greatest Support 60 | 20 20 40 60 60 60 Greatest Overweight (x) 2 | 1 2 1 2 1 1 Average Overweight (x) . | . 1 . . 1 . Largest Inventory Capacity 25 | 8 15 15 25 25 25 Average Capacity 17 | 7 13 15 17 25 22 Most Carried 25 | 8 15 15 25 25 25 Average Carried 16 | 5 13 14 17 24 19 Final Capacity 25 | 8 15 15 25 25 15 Final Carried 25 | 8 15 15 25 25 11 Class Distribution -------------------- 40% | Mutant 38% | Scavenger-Gunner 16% | Scavenger-Mutant 3% | Gunner Dominant Class ---------------- Mutant | -10/Materials Mutant | -10/Mines Scavenger-Gunner | -9/Materials Scavenger-Gunner | -9/Mines Scavenger-Mutant | -9/Exiles Resources | -11 -10 -10 -9 -9 -9 ----------- Run | Yrd Mat Min Mat Min Exi Matter Collected 2061 | 270 305 62 885 343 196 Remotely . | . . . . . . Salvage Created 3147 | 211 707 102 1617 486 24 Parts 177 | 17 28 5 101 23 3 Haulers Intercepted 5 | . 2 . 3 . . Recyclers Shooed 4 | . 2 1 1 . . Parts Field Recycled . | . . . . . . Retrieved Matter . | . . . . . . Parts Self-Destructed . | . . . . . . Prevented . | . . . . . . Parts Restored . | . . . . . . Kills | -11 -10 -10 -9 -9 -9 ------- Run | Yrd Mat Min Mat Min Exi Combat Hostiles Destroyed 57 | . 9 3 30 13 2 Guns 42 | . 6 . 23 13 . Cannons 5 | . 3 . 2 . . AOE 9 | . . 3 4 . 2 Classes Destroyed 13 | 2 5 1 2 1 2 Worker 10 | . 1 1 8 . . Tunneler 6 | 6 . . . . . Hauler 5 | . 2 . 3 . . Recycler 8 | 1 2 1 4 . . Operator 2 | . 1 . 1 . . Watcher 5 | . 2 . 3 . . Swarmer 17 | . . 3 10 4 . Grunt 29 | . 9 . 13 7 . Brawler 2 | . . . 1 1 . Duelist 1 | . . . . 1 . Sentry 6 | . . . 6 . . Zionite 1 | . . . . . 1 Assembled 2 | . . . . . 2 Best Kill Streak 7 | 3 3 3 7 7 2 Combat Bots Only 7 | . 2 3 4 7 2 Max Kills in Single Turn 3 | 1 1 3 3 1 2 Gunslinging 1 | . . . 1 . . Exploded 3 | . . 3 2 . 2 Melee . | . . . . . . Uniques/NPCs Destroyed . | . . . . . . Combat | -11 -10 -10 -9 -9 -9 -------- Run | Yrd Mat Min Mat Min Exi Hostile Shots Fired 270 | . 39 8 116 56 51 Missed 63 | . 11 5 20 17 10 Hits 207 | . 28 3 96 39 41 Melee 6 | . . . . 6 . Projectile 201 | . 28 3 96 33 41 Critical Strikes 30 | . . . 1 3 26 Actively Blocked 6 | . . . . . 6 Damage Taken 2882 | . 377 23 1153 538 791 Core 528 | . 109 6 171 66 176 Absorbed by Shields . | . . . . . . Redirected to Shielding 38 | . . . . . 38 Regen/Repaired (Parts) 218 | . . . 218 . . Core Remaining (%) 77 | 100 . 54 . . . Volleys Fired 273 | 21 84 4 100 38 26 Largest 3 | 2 2 1 3 3 3 Hottest 181 | 90 100 100 181 102 66 Shots Fired 610 | 42 153 4 261 106 44 Gun 526 | 42 125 . 218 106 35 Cannon 65 | . 15 2 41 . 7 Launcher 5 | . . 1 2 . 2 Special 14 | . 13 1 . . . Kinetic 243 | . 15 2 116 68 42 Thermal 362 | 42 138 1 143 38 . Explosive 5 | . . 1 2 . 2 Electromagnetic . | . . . . . . Robot Hit Streak 15 | 6 15 2 12 10 7 Robot Miss Streak 6 | 5 6 1 5 3 2 Penetration Max . | . . . . . . Secondary Targets 4 | . . . 3 1 . Max Gunslinging Chain 1 | . . . 1 1 . Shots Hit Robots 370 | 21 93 3 152 75 26 Core Hits 143 | 8 36 4 66 22 7 Critical Kills . | . . . . . . Critical Parts Destroyed 3 | . . . 2 1 . Critical Strikes 15 | . 7 . 7 1 . Burn 11 | . 6 . 5 . . Destroy 3 | . . . 2 1 . Blast 1 | . 1 . . . . Melee Attacks . | . . . . . . Impact . | . . . . . . Slashing . | . . . . . . Piercing . | . . . . . . Sneak Attacks . | . . . . . . Combat Hostiles . | . . . . . . Follow-up Attacks . | . . . . . . Damage Inflicted 5878 | 262 1167 156 2715 1091 487 Guns 4603 | 262 971 . 1938 1091 341 Cannons 688 | . 196 20 406 . 66 Explosions 533 | . . 112 341 . 80 Melee . | . . . . . . Ramming 30 | . . . 30 . . Kinetic 2260 | . 196 20 936 701 407 Thermal 3055 | 262 971 24 1408 390 . Explosive 533 | . . 112 341 . 80 Electromagnetic . | . . . . . . Impact . | . . . . . . Slashing . | . . . . . . Piercing . | . . . . . . Highest Corruption 3 | . . . 1 3 3 Average Corruption 1 | . . . 1 2 3 Corruption Purged . | . . . . . . Corruption Blocked . | . . . . . . Effects 51 | . . . 13 15 23 Message Errors 8 | . . . 1 5 2 Matter Fused 13 | . . . 2 3 8 Heat Flow Errors 10 | . . . 3 1 6 Energy Discharges 6 | . . . 2 2 2 Parts Fused 2 | . . . . . 2 Data Loss (minor) 7 | . . . 3 2 2 Data Loss (major) 2 | . . . 1 . 1 Misfires 1 | . . . 1 . . Alerts 1 | . . . . 1 . Weapon Failures 1 | . . . . 1 . Overload Shots . | . . . . . . Overflow Damage 62 | . . 20 42 . . Projectiles . | . . . . . . Explosions 62 | . . 20 42 . . Melee . | . . . . . . Knockbacks 6 | . 5 . 1 . . Impact 1 | . . . 1 . . Kinetic 5 | . 5 . . . . Secondary . | . . . . . . Self-Inflicted Damage 37 | . . . 37 . . Shots 1 | . . . 1 . . Rammed 1 | . . . 1 . . Targets Rammed 1 | . . . 1 . . Kicked . | . . . . . . Crushed . | . . . . . . Highest Temperature 385 | 150 153 20 385 245 265 Average Temperature 73 | 55 34 10 91 69 101 Received Heat Transfer 711 | . 201 . 279 186 45 Siege Activations . | . . . . . . Martial Activations . | . . . . . . Shielding Activations . | . . . . . . Robots Disrupted . | . . . . . . Combat Hostiles . | . . . . . . Robots Corrupted . | . . . . . . Combat Hostiles . | . . . . . . Parts Fried . | . . . . . . Impact Corruptions . | . . . . . . Robots Melted 1 | . . . 1 . . Combat Hostiles 1 | . . . 1 . . Parts Melted 11 | . 6 . 4 1 . Heat Transferred 8573 | 682 3105 50 3737 999 . Parts Sabotaged . | . . . . . . Parts Stolen . | . . . . . . Parts Stripped . | . . . . . . Power Chain Reactions . | . . . . . . Alert | -11 -10 -10 -9 -9 -9 ------- Run | Yrd Mat Min Mat Min Exi Maximum Alert Level 2 | . . . 2 1 . Low Security (%) 74 | 100 100 100 50 54 . Level 1 11 | . . . 14 45 . Level 2 13 | . . . 35 . . Level 3 . | . . . . . . Level 4 . | . . . . . . Level 5 . | . . . . . . High Security . | . . . . . . Max Security . | . . . . . . Peak Influence 519 | 10 60 119 519 294 . Initial 194 | . . . 29 194 . Average 124 | 1 14 12 238 203 . Influence Increases 2061 | 35 383 129 1101 413 . Destroy 0b10 Robot/C 1140 | . 180 60 600 300 . Destroy 0b10 Robot/NC 180 | 35 40 10 95 . . Destroy Leader 300 | . 58 10 172 60 . Allied During Kill 8 | . . . . 8 . Successful Hack 50 | . 17 . 33 . . Select Force Hacks 120 | . 60 . 60 . . Disable Machine 90 | . . 45 45 . . Destroy Structure 38 | . 13 4 21 . . Partial Spotted 15 | . . . 15 . . Lose Combat Pursuer 120 | . 15 . 60 45 . Influence Decreases 2061 | 35 383 52 679 695 217 Entered New Map 570 | . . . 48 305 217 Time Decay 1430 | 35 372 52 591 380 . Lost Part 50 | . . . 40 10 . Purge Threat 11 | . 11 . . . . Squads Dispatched 10 | . 3 . 6 1 . Investigation 7 | . 2 . 4 1 . Extermination . | . . . . . . Reinforcement 3 | . 1 . 2 . . Assault . | . . . . . . Garrison . | . . . . . . Intercept . | . . . . . . Searches Triggered . | . . . . . . Construction Impeded . | . . . . . . Haulers Reinforced . | . . . . . . Active Scanning Responses . | . . . . . . Cargo Convoy Interrupts . | . . . . . . Stealth | -11 -10 -10 -9 -9 -9 --------- Run | Yrd Mat Min Mat Min Exi Distress Signals 7 | . 2 . 4 1 . Communications Jammed . | . . . . . . Distress Signals . | . . . . . . Times Spotted 90 | . 22 3 41 18 6 Peak Tracking Total 10 | . 3 3 4 6 10 Tactical Retreats 6 | . 1 . 3 2 . Traps | -11 -10 -10 -9 -9 -9 ------- Run | Yrd Mat Min Mat Min Exi Traps Triggered 4 | . 1 . 3 . . Indirectly . | . . . . . . Trap Hack Attempts . | . . . . . . Triggered . | . . . . . . Disarmed . | . . . . . . Reprogrammed . | . . . . . . Reused . | . . . . . . Traps Extracted . | . . . . . . Installed . | . . . . . . Triggered . | . . . . . . Most Traps Carried 2 | . . . . 2 2 Machines | -11 -10 -10 -9 -9 -9 ---------- Run | Yrd Mat Min Mat Min Exi Machines Disabled 11 | . . 3 3 . 5 Max in Single Turn 3 | . . 3 1 . 1 Machines Repaired . | . . . . . . Machines Dismantled . | . . . . . . Machines Sabotaged . | . . . . . . Overloaded Fab Kills . | . . . . . . Hacking | -11 -10 -10 -9 -9 -9 --------- Run | Yrd Mat Min Mat Min Exi Machines Accessed 21 | . 8 2 7 2 2 Terminals 11 | . 6 1 3 1 . Fabricators . | . . . . . . Repair Stations 1 | . . . 1 . . Recycling Units 4 | . 2 . 2 . . Scanalyzers 1 | . . . 1 . . Garrison Access . | . . . . . . Total Hacks 57 | . 19 3 27 3 5 Successful 38 | . 13 2 16 2 5 Failed 19 | . 6 1 11 1 . Catastrophic 2 | . . . 2 . . Database Lockouts . | . . . . . . Manual 30 | . 14 2 13 . 1 Terminals 31 | . 14 2 13 2 . Fabricators . | . . . . . . Repair Stations 4 | . . . 4 . . Recycling Units 9 | . 5 . 4 . . Scanalyzers 6 | . . . 6 . . Garrison Access . | . . . . . . Terminal Hacks 10 | . 2 1 . 2 5 Record 4 | . . . . . 4 Open Door 2 | . . 1 . 1 . Unreport Threat 1 | . 1 . . . . Locate Traps 1 | . 1 . . . . Zone Layout 1 | . . . . 1 . Proto ID Catalog 1 | . . . . . 1 Fabricator Hacks . | . . . . . . Repair Station Hacks 4 | . . . 4 . . Scan Component 2 | . . . 2 . . Repair 2 | . . . 2 . . Recycling Unit Hacks 2 | . 1 . 1 . . Retrieve Components 2 | . 1 . 1 . . Scanalyzer 5 | . . . 5 . . Insert Component 3 | . . . 3 . . Analyze 1 | . . . 1 . . Retrieve Study 1 | . . . 1 . . Garrison Access Hacks . | . . . . . . Unauthorized Hacks 17 | . 10 1 6 . . Terminals 13 | . 8 1 4 . . Track 1 | . . 1 . . . Botnet 5 | . 3 . 2 . . Skim 7 | . 5 . 2 . . Fabricators . | . . . . . . Repair Stations . | . . . . . . Recycling Units 4 | . 2 . 2 . . Tunnel 4 | . 2 . 2 . . Scanalyzers . | . . . . . . Garrison Access . | . . . . . . Data Cores Recovered . | . . . . . . Used . | . . . . . . Hacking Detections 13 | . 6 1 5 1 . Full Trace Events 1 | . . . 1 . . Feedback Events . | . . . . . . Feedback Blocked . | . . . . . . Robot Schematics Acquired . | . . . . . . Robots Built . | . . . . . . Authchips . | . . . . . . Time . | . . . . . . Total Robot Build Rating . | . . . . . . Part Schematics Acquired 1 | . . . 1 . . Parts Built . | . . . . . . Authchips . | . . . . . . Time . | . . . . . . Total Part Build Rating . | . . . . . . Part Studies Acquired 1 | . . . 1 . . Parts Repaired 2 | . . . 2 . . Time 52 | . . . 52 . . Parts Recycled . | . . . . . . Recycled Matter . | . . . . . . Retrieved Matter . | . . . . . . Retrieved Components 7 | . 7 . . . . Parts Scanalyzed 1 | . . . 1 . . Part Schematics Acquired 1 | . . . 1 . . Parts Damaged . | . . . . . . Bothacking | -11 -10 -10 -9 -9 -9 ------------ Run | Yrd Mat Min Mat Min Exi Used RIF Installer . | . . . . . . Robots Hacked . | . . . . . . Non-combat . | . . . . . . Combat . | . . . . . . Robot Hacks Applied . | . . . . . . Relay Couplers Released . | . . . . . . Fabnet Peak Effective % . | . . . . . . Robots Rewired . | . . . . . . Allies Hacked . | . . . . . . Hacks Repelled . | . . . . . . Allies | -11 -10 -10 -9 -9 -9 -------- Run | Yrd Mat Min Mat Min Exi Total Allies 3 | . . . . 3 . Largest Group 3 | . . . . 3 3 Highest-Rated Group 40 | . . . . 40 40 Highest-Rated Ally 16 | . . . . 16 16 Total Orders 3 | . . . . . 3 STAY 3 | . . . . . 3 Ally Attacks 26 | . . . . 10 16 Total Damage 145 | . . . . 124 21 Kills 3 | . . . . 2 1 Allies Corrupted . | . . . . . . Allies Melted 1 | . . . . 1 . Intel | -11 -10 -10 -9 -9 -9 ------- Run | Yrd Mat Min Mat Min Exi Active Infowar (turns) 3506 | 54 833 926 1296 397 . Seismic 3506 | 54 833 926 1296 397 . Robot Analysis Total . | . . . . . . Derelict Logs Recovered 2 | . . 1 . 1 . Drone Launches . | . . . . . . Drone Recoveries . | . . . . . . Exploration | -11 -10 -10 -9 -9 -9 ------------- Run | Yrd Mat Min Mat Min Exi Turns Passed 7461 | 253 1760 940 2282 881 1345 Spaces Moved 3533 | 134 1008 508 916 355 612 Core 3 | 3 . . . . . Treads 2713 | 69 278 508 891 355 612 Legs . | . . . . . . Wheels 817 | 62 730 . 25 . . Hover . | . . . . . . Flight . | . . . . . . Fastest Speed 50 | 50 95 160 115 200 160 Average Speed 168 | 127 139 180 172 200 191 Slowest Speed 240 | 160 240 240 240 200 200 Overloaded Moves . | . . . . . . Propulsion Burnouts . | . . . . . . Robots Hopped . | . . . . . . Potential Cave-ins . | . . . . . . Cave-ins Triggered . | . . . . . . Exploration Rate (%) 63 | 9 99 92 65 55 58 Regions Visited 5 Branch Regions 3 Pre-discovered Areas 6 | . 3 . 2 . 1 Known Exits Taken 3 | . 1 1 1 . . Unknown Exits Taken 2 | 1 . . . 1 . Scrap Searched 1 | . . 1 . . . Spaces Dug 22 | . 8 . 14 . . Terrain Destroyed 44 | . 12 4 14 . 14 Melee . | . . . . . . Projectile 12 | . 12 . . . . AOE 32 | . . 4 14 . 14 Terrain Rammed . | . . . . . . Walls Destroyed . | . . . . . . Machines Disabled . | . . . . . . Actions | -11 -10 -10 -9 -9 -9 --------- Run | Yrd Mat Min Mat Min Exi Total 4483 | 171 1181 527 1404 443 757 Wait 410 | . 38 1 278 28 65 Move 3529 | 133 1007 507 916 354 612 Hop . | . . . . . . Pick Up 76 | 9 15 3 29 4 16 Fast Attach 16 | 7 . 3 3 2 1 Attach 12 | . 1 . 5 1 5 Detach 2 | . . . . . 2 Swap 79 | . 24 3 41 9 2 Drop 86 | 1 12 6 32 7 28 Fire 273 | 21 84 4 100 38 26 Melee . | . . . . . . Ram . | . . . . . . Kick . | . . . . . . Crush . | . . . . . . Escape Stasis . | . . . . . . Rewire . | . . . . . . Trap . | . . . . . . Miscellaneous . | . . . . . . Route ------- -11/Scrapyard -10/Materials (discovered 6 exits: *Mat x3 / *Min x2 / Sub) -10/Mines (discovered 3 exits: *Mat x2 / *Sub) -9/Materials (discovered 4 exits: *Mat x3 / *Min) -9/Mines -9/Exiles (discovered 2 exits: *Min x2) History --------- Turn | Location | Event 16 | -11/Scrapyard | Discovered new exit (range 16) 254 | -11/Scrapyard | Entered Materials 302 | -10/Materials | Build established: Mutant 755 | -10/Materials | Discovered new exit (range 14) 884 | -10/Materials | Discovered new exit (range 16) 1130 | -10/Materials | Discovered new exit (range 16) 1213 | -10/Materials | Discovered new exit (range 15) 1259 | -10/Materials | Learned 2 Storage zone layouts 1320 | -10/Materials | Identified exit to Mines 1320 | -10/Materials | Identified exit to Subcaves 1448 | -10/Materials | Identified exit to Materials 1490 | -10/Materials | Learned location of 2 exits from Materials 1541 | -10/Materials | Learned location of 2 exits from Subcaves 2014 | -10/Materials | Entered Mines 2122 | -10/Mines | Found a damaged Exp. Sensor Array with a note attached 2127 | -10/Mines | Found Prototype Device 2175 | -10/Mines | Discovered exit to Materials (range 5) 2276 | -10/Mines | Discovered exit to Materials (range 12) 2336 | -10/Mines | Found the Drone Emporium 2343 | -10/Mines | Found Prototype Device 2343 | -10/Mines | Identified Sensor Drone Bay 2406 | -10/Mines | Received a Rocket Launcher from a helpful Derelict 2808 | -10/Mines | Learned 8 Materials zone layouts 2836 | -10/Mines | Discovered exit to Subcaves (range 10) 2954 | -10/Mines | Entered Materials 2954 | -9/Materials | Evolved 2 slots: Propulsion x1, Weapon x1 2955 | -9/Materials | Identified exit to Mines 2956 | -9/Materials | Identified exit to Materials 3526 | -9/Materials | Build established: Scavenger-Gunner 4821 | -9/Materials | Repaired Lgt. Treads+ 4848 | -9/Materials | Repaired Lgt. Treads+ 5060 | -9/Materials | Discovered exit to Materials (range 14) 5236 | -9/Materials | Entered Mines 5348 | -9/Mines | Met a Derelict bent on vengeance 5359 | -9/Mines | Deemed a non-threat by the Exiles lab entrance 5359 | -9/Mines | Discovered new exit (range 5) 5413 | -9/Mines | Core integrity fell below 50% 5458 | -9/Mines | Destroyed 7 combat bots 5799 | -9/Mines | Found a hidden stash of uninstalled traps 5875 | -9/Mines | Met a Derelict shopkeep closing up shop 6005 | -9/Mines | Assisted by bots powering up and referring to "LRC-V3" 6117 | -9/Mines | Entered Exiles 6117 | -9/Exiles | Accompanied by 3 allies 6118 | -9/Exiles | Identified exit to Mines 6158 | -9/Exiles | Discovered exit to Mines (range 15) 6207 | -9/Exiles | Met 8R-AWN 6235 | -9/Exiles | Met EX-HEX 6291 | -9/Exiles | Met EX-BIN 6341 | -9/Exiles | Met EX-DEC 6349 | -9/Exiles | Learned location of Zion (-7) 6445 | -9/Exiles | Build established: Scavenger-Mutant 6822 | -9/Exiles | Aligned with FarCom system 6824 | -9/Exiles | Given EX-Vault access code 6870 | -9/Exiles | Opened EX-Vault 6922 | -9/Exiles | Warned to stay clear of 0b10 Research branches 7308 | -9/Exiles | Attacked by the Exiles 7421 | -9/Exiles | Core integrity fell below 20% 7432 | -9/Exiles | Lost 3 allies 7462 | -9/Exiles | Destroyed by 8R-AWN with 8R-AWN's Boregun Last Messages --------------- 07442_ Critical hit (Destroy). 07442_ Imp. Assault Rifle destroyed. 07445_ System corrupted: Lgt. Treads+ fused. 07445_ Penetrated by HV Slug. 07445_ HV Slug penetrates Wall. 07447_ Acquired Lgt. Cannon. 07449_ Penetrated by HV Slug. 07449_ HV Slug penetrates Wall. 07449_ Penetrated by HV Slug. 07449_ HV Slug penetrates Wall. 07453_ Penetrated by HV Slug. 07453_ HV Slug penetrates Wall. 07453_ HV Slug penetrates Machine. 07453_ HV Slug penetrates Earth. 07457_ Penetrated by HV Slug. 07457_ HV Slug penetrates Wall. 07457_ HV Slug penetrates Machine. 07457_ Machine disabled. 07457_ HV Slug penetrates Earth. 07462_ Penetrated by HV Slug. Map ----- +----------------------------------------------------+ | ?????????????????????????????????????????????????? | | ?????????????????????????????????????????????????? | | ?????????????????????????????????????????????????? | | ?????????????????????????????????????????????????? | | ?????????????????????????????????????????????????? | | ?????????????????????????????????????????????????? | | ?????????????????????????????????????????????????? | | ?????????????????????????????????????????????????? | | ?????????????????????????????????????????????????? | | ?????????????????????????????????????????????????? | | ?????????????????????????????????????????????????? | | ?????????????????????????????????????????????????? | | ??????????????????????????? ?????????????????????? | | ??????????????????????????? ?????????????????????? | | ??????????????????????????? ?????????????????????? | | ??????????????????????????? ?????????????????????# | | ??????????????????????????? ?????????????????????# | | ??????>????????????????##?? #????????????????????# | | ???????????????????????# ?? #????????????????????# | | ??????????????????????? ?# #????????????????????? | | ???????????????????????# ?# #????????????????????? | | ???????????????????????# ## #????????????????????? | | ???????????????????????? # #????????????????????? | | ????????? ?????????????##!#;###??????????????????? | | ???????? ######??????#%!!!="#??????????????????? | | ???????? #""#?????##@%* "#??????????????????? | | ???????? ????? ;=!!!"#??????????????????? | | ????????" #???##;!% "#????????????####??? | | ????????" ##### "#???????????? """?? | | ?????????# ##" #????????????" """#? | | ??????????# #"" ###???????????"" #? | | ?????????????# % ;?????????????"" #? | | ???????????????## g #????????????"" "#? | | ????????????????### % #???????????? ""?? | | ??????????########" %%##???????????" "??? | | ??????????# !!""""" ##??????????# #??? | | ??????????# !] "## ######???### ###? | | ??????????#!!! "## " "#####X# #"## | | ??????????#! ### """ | | ??????????# !""""""###?## * "" | | ??????????##########????# # " | | ????????????????????????## # ## * | | ??????????????????????????#?#?### | | ????????????????????????????????## * | | ?????????????????????????????????## !%[ | | ??????????????????????????????????## | | ???????????????????????????????????#""" | | ???????????????????????????????????#" | | ???????????????????????????????????"" | | ???????????????????????????????????""" " | +----------------------------------------------------+ Best States ------------- Heat Dissipation 42 Energy Generation 12 Energy Capacity 265 Matter Stores 300 Matter Capacity 300 Sight Range 16 Terrain Scan Density 10 Core Shielding 20 Evasion (%) 41 Recoil Reduction 3 Item Schematics ----------------- Imp. Flight Unit | -9/Materials | Scanalyzed Robot Schematics ------------------ None Fabricated ------------ Nothing Repaired ---------- Lgt. Treads | 20% | -9/Materials Lgt. Treads | 23% | -9/Materials Studied --------- Lgt. Treads | -9/Materials | Hacked Alien Tech Used ----------------- None Achievements -------------- None Challenges ------------ None Game ------ Seed StorageRemotePropulsion Manual? 0 Play Time 00:47:29 Cumulative 252.3 hours Start 2025.11.09 @ 13:06:27 End 2025.11.09 @ 21:03:42 Sessions 2 Manual Loads 0 Difficulty Rogue Special Mode None Game No. 72 Rogue 66 Adventurer 0 Explorer 6 Win Type - Total 14 Types 6/1/2/1/1/0/1/1/0/1 Lore% 81 Gallery% 74 Achievement% 57 Wizard Run 0 Options --------- Layout 1 ASCII 0 Keyboard 0 Movement Mouse Keybinds 0 Fullscreen 2 Font 24/Smallcaps Map View 50x35 Zoom Use 0% Tactical HUD 1 Map Filters NONE Filters NONE Steam 1 RUN: 138e9c99-2cc5-49f9-a03e-779fae27f57c